bitfinex/quotes_ETHUSD_20250326
["timestamp","ask_amount","ask_price","bid_price","bid_amount"]
[1743007368923,4.95927,2016.5,2016.1,0.07]
[1743007369202,9.08458815,2016.5,2016.2,4.9598]
[1743007369404,4.12531815,2016.5,2016.2,4.9598]
[1743007369815,4.12531815,2016.5,2016.2,6.20595429]
[1743007370213,3.0,2016.4,2016.2,1.24615429]
[1743007370422,3.0,2016.4,2016.2,5.342]
[1743007370573,3.0,2016.4,2016.2,4.792]
[1743007370773,3.0,2016.4,2016.3,0.10221117]
[1743007372324,7.95933,2016.4,2016.3,0.10221117]
[1743007374006,3.0,2016.4,2016.3,0.10221117]
[1743007374290,7.95933,2016.4,2016.3,1.12033734]
[1743007374504,3.0,2016.4,2016.3,1.12033734]
[1743007376435,3.0,2016.4,2016.3,15.62033734]
[1743007377193,7.95933,2016.4,2016.3,1.12033734]
[1743007377388,3.0,2016.4,2016.3,1.12033734]
[1743007379495,4.95909,2016.5,2016.3,1.12033734]
[1743007379496,3.0,2016.5,2016.3,6.84771734]
[1743007380008,3.0,2016.5,2016.4,14.5]
[1743007380424,3.0,2016.5,2016.4,14.60221117]
[1743007381039,3.0,2016.5,2016.4,0.10221117]
[1743007381252,3.0,2016.5,2016.3,1.78602617]
[1743007381458,7.12531815,2016.5,2016.4,0.10221117]
[1743007381626,7.12531815,2016.5,2016.3,16.28602617]
[1743007381828,7.12531815,2016.5,2016.4,0.10221117]
[1743007382128,8.82959996,2016.5,2016.3,15.51812617]
[1743007382333,12.08462815,2016.5,2016.4,0.10221117]
[1743007382652,12.08462815,2016.5,2016.3,1.01812617]
[1743007382951,12.08462815,2016.5,2016.4,0.10221117]
[1743007383661,12.08462815,2016.5,2016.3,1.01812617]
[1743007383818,12.08462815,2016.5,2016.4,0.10221117]
[1743007384020,13.78898397,2016.5,2016.3,1.01812617]
[1743007384257,13.78898397,2016.5,2016.4,0.10422759]
[1743007384430,13.78898397,2016.5,2016.3,1.01812617]
[1743007384631,13.78898397,2016.5,2016.4,0.10422759]
[1743007384954,7.95933,2016.4,2016.3,1.01812617]
[1743007385156,9.36521033,2016.4,2016.3,1.01812617]
[1743007385757,3.0,2016.4,2016.3,1.01812617]
[1743007385945,3.0,2016.4,2016.3,1.12235376]
[1743007387962,3.0,2016.4,2016.3,1.94375376]
[1743007389465,4.95843,2016.8,2016.4,5.50917]
[1743007389651,3.0,2016.7,2016.4,5.50917]
[1743007389966,3.0,2016.7,2016.5,0.1059158]
[1743007390160,3.0,2016.8,2016.5,5.0648758]
[1743007390381,7.95837,2016.8,2016.5,0.1059158]
[1743007390550,3.0,2016.8,2016.5,5.0648458]
[1743007390876,4.12531815,2016.9,2016.6,10.57801]
[1743007391057,4.12531815,2016.9,2016.6,10.57789]
[1743007391385,3.0,2016.9,2016.7,0.10549369]
[1743007391736,3.0,2017.0,2016.8,4.95833]
[1743007391936,3.0,2017.0,2016.8,5.06316715]
[1743007392135,3.0,2017.0,2016.8,0.10483715]
[1743007393336,4.12531815,2016.9,2016.8,0.10483715]
[1743007393646,13.29174396,2016.9,2016.6,4.792]
[1743007393849,4.12531815,2016.7,2016.6,4.792]
[1743007395393,9.08400815,2016.7,2016.5,4.791]
[1743007395796,7.95884,2016.6,2016.5,4.791]
[1743007395994,7.95884,2016.6,2016.3,12.09754617]
[1743007395995,4.95912,2016.5,2016.3,1.01812617]
[1743007396211,4.95912,2016.5,2016.3,5.80912617]
[1743007396212,7.12531815,2016.4,2016.3,5.80912617]
[1743007398887,12.08464815,2016.4,2016.1,0.07]
[1743007399071,4.12531815,2016.2,2016.1,0.07]
[1743007399995,9.08513815,2016.2,2016.1,0.07]
[1743007400992,9.08513815,2016.2,2016.1,0.16775657]
[1743007401168,4.12531815,2016.2,2016.1,0.16775657]
[1743007404692,12.08467815,2016.4,2016.1,0.16775657]
[1743007404910,0.1986,2016.6,2016.1,0.16775657]
[1743007404911,8.15749,2016.6,2016.2,4.95973]
[1743007405112,3.0,2016.4,2016.2,4.95973]
[1743007405274,3.0,2016.4,2016.3,0.09794405]
[1743007405476,3.0,2016.4,2016.3,14.59794405]
[1743007406088,3.0,2016.4,2016.3,0.09794405]
[1743007406306,3.0,2016.4,2016.1,10.76386]
[1743007406500,3.0,2016.4,2016.3,0.09794405]
[1743007406674,3.0,2016.4,2016.2,14.5]
[1743007406875,3.0,2016.4,2016.3,0.09794405]
[1743007410604,12.08438815,2016.6,2016.3,0.09794405]
[1743007410807,18.27172697,2016.6,2016.3,0.09794405]
[1743007411181,3.0,2016.4,2016.3,0.09794405]
[1743007411577,3.0,2016.4,2016.2,14.5]
[1743007412123,3.0,2016.4,2016.3,0.09794405]
[1743007413930,3.0,2016.4,2016.1,10.76387]
[1743007414089,3.0,2016.4,2016.3,0.09822521]
[1743007416879,4.12531815,2016.6,2016.3,0.09822521]
[1743007417085,9.08368815,2016.8,2016.4,5.78811]
[1743007417435,5.15646,2017.0,2016.6,4.9587]
[1743007417582,10.11449,2017.0,2016.7,0.09691304]
[1743007417781,9.08345815,2016.9,2016.5,9.74901]
[1743007418217,3.0,2016.8,2016.6,0.09686618]
[1743007419342,3.0,2016.8,2016.6,5.05566618]
[1743007420846,3.0,2016.8,2016.6,0.09686618]
[1743007421229,12.12170425,2016.7,2016.6,0.09686618]
[1743007421415,7.95905,2016.6,2016.3,4.79]
[1743007421609,12.12236425,2016.5,2016.4,0.09686618]
[1743007421919,12.12236425,2016.5,2016.3,4.79]
[1743007422249,12.12236425,2016.5,2016.4,0.09550735]
[1743007422432,3.0,2016.4,2016.3,4.79]
[1743007422631,7.95887,2016.6,2016.3,4.88550735]
[1743007422954,7.95887,2016.6,2016.3,5.87498071]
[1743007423455,7.95887,2016.6,2016.3,10.83455071]
[1743007425146,7.95887,2016.6,2016.3,5.87498071]
[1743007426464,12.91788,2016.6,2016.3,5.87498071]
[1743007426964,7.95887,2016.6,2016.3,5.87498071]
[1743007427574,12.91788,2016.6,2016.3,5.87498071]
[1743007428464,7.95887,2016.6,2016.3,5.87498071]
[1743007428649,7.95887,2016.6,2016.3,20.37498071]
[1743007428851,12.91794,2016.6,2016.3,20.37498071]
[1743007429764,7.95887,2016.6,2016.3,5.87498071]
[1743007429972,7.95887,2016.6,2016.3,10.83454071]
[1743007430466,9.12174425,2016.7,2016.3,5.87498071]
[1743007430650,9.32000425,2016.9,2016.4,5.74059]
[1743007430842,3.0,2016.7,2016.4,5.74059]
[1743007431163,9.91691,2016.8,2016.5,0.09550735]
[1743007431373,3.0,2016.7,2016.5,0.09550735]
[1743007432062,7.16311425,2016.7,2016.5,0.09550735]
[1743007433330,4.16311425,2016.7,2016.5,0.09550735]
[1743007433529,9.12035425,2017.3,2016.9,5.7319]
[1743007433735,3.0,2017.2,2016.9,10.5199]
[1743007433964,4.9574,2017.2,2016.9,5.5618]
[1743007434170,4.9574,2017.2,2017.0,0.09494515]
[1743007434469,9.12072425,2017.1,2017.0,0.09494515]
[1743007434964,1.42763543,2017.2,2017.0,0.09494515]
[1743007435263,9.38507543,2017.2,2017.0,0.09494515]
[1743007435850,4.42763543,2017.2,2017.0,0.09494515]
[1743007436050,3.0,2017.2,2017.0,0.09494515]
[1743007436254,7.16311425,2017.1,2017.0,0.09494515]
[1743007436931,3.0,2017.1,2017.0,0.09494515]
[1743007438579,3.0,2017.2,2017.0,0.09494515]
[1743007442618,3.0,2017.3,2017.0,5.05261515]
[1743007442781,3.0,2017.3,2017.1,4.95753]
[1743007443074,3.0,2017.3,2017.0,6.12038149]
[1743007443377,3.0,2017.3,2017.1,0.0925564]
[1743007445174,3.0,2017.5,2017.2,5.75147]
[1743007445499,3.0,2017.5,2017.2,10.70873]
[1743007445785,3.0,2017.5,2017.2,5.75146]
[1743007445982,5.15459,2017.8,2017.4,4.95687]
[1743007446186,5.15459,2017.8,2017.4,9.74287]
[1743007446187,4.36171425,2017.8,2017.4,9.74287]
[1743007446343,9.31769425,2017.8,2017.4,9.74287]
[1743007446544,3.0,2017.7,2017.4,4.786]
[1743007446745,7.95614,2017.7,2017.4,4.786]
[1743007446969,3.0,2017.5,2017.4,4.786]
[1743007450623,4.957,2017.4,2017.2,6.12]
[1743007450778,7.95712,2017.3,2017.2,6.12]
[1743007451105,7.95712,2017.3,2017.1,4.785]
[1743007451106,4.95761,2017.1,2016.8,0.786]
[1743007451306,4.95761,2017.1,2016.7,4.95845]
[1743007451307,4.16311425,2016.9,2016.7,4.785]
[1743007451516,4.16311425,2016.9,2016.6,6.906]
[1743007451672,4.16311425,2016.9,2016.7,4.785]
[1743007452608,3.0,2016.8,2016.4,5.75737]
[1743007452907,7.95843,2016.8,2016.5,4.785]
[1743007454275,12.91696,2016.8,2016.5,4.785]
[1743007454580,7.95843,2016.8,2016.5,4.785]
[1743007455416,7.95843,2016.8,2016.6,1.01674379]
[1743007456013,9.83491788,2016.8,2016.6,1.01674379]
[1743007456313,4.36171425,2016.9,2016.5,9.74407]
[1743007456491,4.95843,2016.8,2016.5,9.74407]
[1743007457012,9.31981425,2016.9,2016.5,24.24403]
[1743007457185,3.0,2016.8,2016.5,24.24403]
[1743007457602,7.95836,2016.8,2016.5,19.285]
[1743007458611,3.0,2016.6,2016.5,19.285]
[1743007458797,3.0,2016.6,2016.2,11.13874897]
[1743007459003,3.0,2016.6,2016.3,9.74545]
[1743007459205,3.0,2016.6,2016.3,24.24545]
[1743007459711,3.0,2016.6,2016.3,9.74545]
[1743007460723,3.0,2016.6,2016.4,0.09265008]
[1743007461022,3.0,2016.6,2016.3,9.74545]
[1743007461236,7.95884,2016.6,2016.5,0.09531989]
[1743007461518,9.12220425,2016.5,2016.3,4.785]
[1743007461810,9.12220425,2016.5,2016.2,0.55]
[1743007462115,9.12220425,2016.5,2016.3,4.785]
[1743007462311,3.0,2016.4,2016.3,4.785]
[1743007463211,9.12220425,2016.5,2016.3,4.785]
[1743007463415,3.0,2016.4,2016.3,4.785]
[1743007463614,3.0,2016.4,2016.3,9.74457]
[1743007463786,3.0,2016.4,2016.3,10.53077]
[1743007463983,3.0,2016.5,2016.3,4.785]
[1743007464706,3.0,2016.5,2016.3,9.74448]
[1743007465214,3.0,2016.5,2016.4,14.5]
[1743007465687,3.0,2016.5,2016.3,4.785]
[1743007466088,3.0,2016.5,2016.3,19.285]
[1743007466724,3.0,2016.5,2016.4,0.7681]
[1743007466924,3.0,2016.6,2016.4,0.7681]
[1743007467108,3.0,2016.6,2016.4,15.2681]
[1743007467595,3.0,2016.6,2016.4,0.7681]
[1743007468354,7.9589,2016.6,2016.3,19.285]
[1743007469352,3.0,2016.6,2016.3,19.285]
[1743007469757,3.0,2016.6,2016.3,22.06345063]
[1743007470658,6.11840915,2017.1,2016.5,0.7578]
[1743007470659,9.91603,2017.0,2016.5,0.7578]
[1743007470959,7.95812,2016.9,2016.5,0.7578]
[1743007471114,17.07951425,2016.9,2016.5,0.7578]
[1743007471313,12.12123425,2016.9,2016.5,0.7578]
[1743007471821,7.16311425,2016.9,2016.5,15.2578]
[1743007472006,5.52104815,2017.1,2016.6,0.55]
[1743007472007,8.1563,2017.1,2016.6,0.55]
[1743007472211,12.31941425,2017.1,2016.6,0.55]
[1743007472748,17.27719425,2017.1,2016.6,0.55]
[1743007473455,4.95785,2017.0,2016.6,0.55]
[1743007473756,17.27719425,2017.1,2016.6,0.55]
[1743007473939,12.31941425,2017.1,2016.6,0.55]
[1743007474255,17.27719425,2017.1,2016.6,1.52580119]
[1743007474452,9.91591,2017.0,2016.6,7.64580119]
[1743007474618,4.95789,2017.0,2016.6,7.64580119]
[1743007475017,9.91597,2017.0,2016.6,7.64580119]
[1743007475216,3.0,2016.8,2016.6,7.64580119]
[1743007475945,3.0,2016.8,2016.7,0.64485156]
[1743007480723,3.0,2016.8,2016.7,0.09485156]
[1743007480950,3.0,2016.8,2016.6,7.09580119]
[1743007481149,3.0,2016.8,2016.7,0.09485156]
[1743007481433,3.0,2016.8,2016.6,7.09580119]
[1743007481632,3.0,2016.8,2016.7,0.09485156]
[1743007481949,3.0,2016.8,2016.6,7.09580119]
[1743007482150,3.0,2016.8,2016.7,0.09485156]
[1743007482350,3.0,2016.8,2016.6,7.09580119]
[1743007482653,3.0,2016.8,2016.7,5.05344156]
[1743007482949,3.0,2016.9,2016.7,5.05344156]
[1743007483115,3.0,2016.9,2016.7,6.84002583]
[1743007483959,3.0,2016.9,2016.7,1.88143583]
[1743007484254,3.0,2016.9,2016.7,0.09485156]
[1743007484550,3.0,2016.9,2016.6,7.09580119]
[1743007484755,3.0,2016.9,2016.7,5.05332156]
[1743007485119,9.12075425,2017.1,2016.7,5.05331156]
[1743007485447,3.0,2017.0,2016.8,5.73994]
[1743007485617,3.0,2017.0,2016.8,10.52394]
[1743007485817,3.0,2017.0,2016.9,0.09307133]
[1743007486131,3.0,2017.0,2016.8,5.5656]
[1743007486355,3.0,2017.1,2016.9,0.09264978]
[1743007486523,4.95688,2017.4,2017.1,5.74888]
[1743007486854,4.95688,2017.4,2017.2,0.09264978]
[1743007487041,3.0,2017.3,2017.2,0.09264978]
[1743007487224,4.95688,2017.4,2017.1,5.74888]
[1743007487418,3.0,2017.3,2017.2,0.09264978]
[1743007487754,3.0,2017.3,2017.1,5.74888]
[1743007487755,3.0,2017.3,2017.1,5.74885]
[1743007487958,3.0,2017.3,2017.2,0.09264978]
[1743007488134,3.0,2017.3,2017.1,6.323735]
[1743007488336,3.0,2017.3,2017.2,0.09264978]
[1743007488530,3.0,2017.3,2017.1,6.323735]
[1743007488765,3.0,2017.3,2017.2,0.09264978]
[1743007489264,3.0,2017.5,2017.2,4.95736]
[1743007489459,3.0,2017.5,2017.2,5.05000978]
[1743007489764,7.9567,2017.5,2017.3,4.784]
[1743007491770,0.1986,2017.7,2017.4,4.95687]
[1743007491972,4.95601,2017.8,2017.4,6.704257]
[1743007492159,4.95567,2017.9,2017.5,4.95645]
[1743007492160,9.11878425,2017.9,2017.5,4.95645]
[1743007492338,4.95644,2017.6,2017.3,10.904]
[1743007492538,4.16311425,2017.5,2017.3,10.904]
[1743007493061,3.0,2017.4,2017.3,11.454]
[1743007494470,3.0,2017.4,2017.3,10.904]
[1743007494670,3.0,2017.4,2017.3,12.45961155]
[1743007494876,0.1986,2017.7,2017.4,0.55]
[1743007495081,9.31736425,2017.9,2017.5,4.95643]
[1743007495379,3.0,2017.8,2017.4,5.00636334]
[1743007495548,3.0,2017.8,2017.5,0.7651]
[1743007496373,3.0,2017.8,2017.5,3.11108817]
[1743007497171,3.0,2018.0,2017.6,5.50625]
[1743007497377,7.16311425,2018.0,2017.6,5.50625]
[1743007497541,12.11859425,2018.0,2017.6,5.50625]
[1743007498472,7.16311425,2017.8,2017.6,0.55]
[1743007498667,7.16311425,2017.8,2017.5,0.7651]
[1743007498976,12.11910425,2017.8,2017.5,0.7651]
[1743007499981,12.11859425,2018.0,2017.6,0.55]
[1743007500177,12.11859425,2018.0,2017.6,5.50629]
[1743007500554,7.16311425,2017.8,2017.6,0.55]
[1743007500754,3.0,2017.7,2017.6,0.55]
[1743007501586,4.16311425,2017.8,2017.6,0.55]
[1743007501777,3.0,2017.7,2017.6,2.38557852]
[1743007502484,7.16311425,2018.0,2017.6,12.29821852]
[1743007502690,12.11860425,2018.0,2017.6,4.95625]
[1743007502906,7.16311425,2018.0,2017.6,9.91248]
[1743007503058,7.16311425,2018.0,2017.7,4.95606]
[1743007503382,3.0,2017.9,2017.6,4.95623]
[1743007503586,3.0,2017.9,2017.7,1.067794]
[1743007503759,4.16311425,2017.8,2017.6,0.55]
[1743007504597,3.0,2017.7,2017.6,4.781]
[1743007506655,3.0,2017.7,2017.6,10.48818]
[1743007506859,3.0,2017.9,2017.7,4.95608]
[1743007507488,9.11810425,2018.2,2017.8,4.95575]
[1743007507689,0.1986,2018.3,2018.0,4.95538]
[1743007508302,0.1986,2018.3,2018.1,4.781]
[1743007508479,4.16311425,2018.4,2018.1,9.73607]
[1743007508680,3.0,2018.3,2018.1,9.73607]
[1743007508882,3.0,2018.3,2018.1,12.790545]
[1743007509383,4.16311425,2018.4,2018.1,12.790545]
[1743007509586,3.0,2018.3,2018.1,12.790525]
[1743007509920,4.36171425,2018.6,2018.3,4.95459]
[1743007510073,10.24718668,2018.6,2018.2,4.95481]
[1743007510416,3.0,2018.5,2018.3,5.50447]
[1743007510628,0.1986,2018.6,2018.4,4.95441]
[1743007510773,0.1986,2018.6,2018.5,4.95417]
[1743007511412,0.1986,2018.6,2018.4,5.50434]
[1743007511619,4.36171425,2018.6,2018.4,0.55]
[1743007512483,4.36171425,2018.6,2018.4,5.50438]
[1743007513321,4.36171425,2018.6,2018.4,0.55]
[1743007513892,4.16311425,2018.6,2018.4,0.55]
[1743007514802,4.16311425,2018.6,2018.3,5.50465]
[1743007514974,4.16311425,2018.6,2018.2,11.07489]
[1743007514975,9.11705425,2018.6,2018.2,11.07489]
[1743007515175,4.16311425,2018.4,2018.3,4.779]
[1743007519424,13.52469968,2018.4,2018.3,4.779]
[1743007520139,12.11752425,2018.4,2018.3,4.779]
[1743007520939,12.11752425,2018.4,2018.3,5.329]
[1743007520940,3.0,2018.4,2018.3,5.329]
[1743007521152,4.16311425,2019.0,2018.4,0.55]
[1743007521450,4.95295,2019.0,2018.6,5.50386]
[1743007521821,7.16311425,2018.9,2018.6,5.50386]
[1743007522015,12.11633425,2018.9,2018.5,5.5041]
[1743007522346,7.16311425,2018.9,2018.6,19.45381]
[1743007522545,12.11631425,2018.9,2018.6,19.45381]
[1743007524444,7.16311425,2018.9,2018.6,19.45381]
[1743007525243,12.11635425,2018.9,2018.6,14.5]
[1743007525561,4.16311425,2018.7,2018.5,2.073748]
[1743007526100,12.90665,2018.9,2018.5,2.073748]
[1743007526304,12.11635425,2018.9,2018.5,7.027828]
[1743007526650,12.11635425,2018.9,2018.5,11.981888]
[1743007526816,7.16311425,2018.9,2018.6,4.95382]
[1743007527023,7.16311425,2018.9,2018.7,4.95364]
[1743007527334,3.0,2019.0,2018.7,4.95352]
[1743007527535,7.95257,2019.2,2018.8,10.72206]
[1743007527845,17.06837425,2019.2,2018.8,9.73132]
[1743007528067,3.0,2019.0,2018.8,9.73132]
[1743007528272,3.0,2019.1,2018.8,11.811818]
[1743007529061,7.95278,2019.1,2018.8,11.811818]
[1743007530679,3.0,2019.1,2018.8,11.811818]
[1743007530985,4.16311425,2019.2,2019.0,4.95294]
[1743007531134,4.9515,2019.6,2019.2,5.50233]
[1743007531338,9.90316,2019.6,2019.2,5.50233]
[1743007531539,7.16311425,2019.5,2019.2,4.95233]
[1743007531872,12.11486425,2019.5,2019.1,5.943219]
[1743007532262,12.11486425,2019.5,2019.1,10.895799]
[1743007532471,12.11486425,2019.5,2019.2,4.95238]
[1743007532995,4.95201,2019.4,2019.1,5.943239]
[1743007533193,4.95201,2019.4,2019.1,0.990609]
[1743007533359,4.95201,2019.4,2019.1,5.943199]
[1743007533996,9.11536425,2019.3,2019.0,6.12]
[1743007534493,14.06775425,2019.3,2019.0,6.12]
[1743007534695,4.95249,2019.2,2019.0,6.12]
[1743007535000,4.95249,2019.2,2018.9,4.95303]
[1743007535301,4.95191,2019.5,2019.1,4.95266]
[1743007535516,7.95196,2019.4,2019.1,4.95266]
[1743007535663,12.11507425,2019.4,2019.1,5.9982]
[1743007536002,7.16311425,2019.4,2019.1,5.9982]
[1743007536569,7.16311425,2019.4,2019.1,5.99807]
[1743007537973,12.11507425,2019.4,2019.1,1.04554]
[1743007538178,12.11507425,2019.4,2019.0,5.5029]
[1743007538378,17.06721425,2019.4,2019.0,5.5029]
[1743007538680,9.11568425,2019.2,2018.8,7.033878]
[1743007538997,9.11568425,2019.2,2018.7,4.95343]
[1743007538998,4.16311425,2019.0,2018.9,4.776]
[1743007539494,3.0,2019.1,2018.9,4.776]
[1743007539695,3.0,2019.1,2018.8,0.98463797]
[1743007539696,7.16311425,2019.0,2018.8,4.776]
[1743007540600,7.16311425,2019.0,2018.8,6.856335]
[1743007540803,3.0,2019.0,2018.9,4.95319]
[1743007543011,3.0,2019.0,2018.9,5.50319]
[1743007545019,4.36171425,2019.2,2019.0,5.50291]
[1743007545320,3.0,2019.1,2019.0,5.50291]
[1743007545521,3.0,2019.1,2019.0,7.2341535]
[1743007547323,3.0,2019.3,2019.0,12.9755235]
[1743007548219,0.1986,2019.4,2019.1,4.95264]
[1743007548613,7.95179,2019.5,2019.1,4.95256]
[1743007548814,12.90368,2019.5,2019.1,6.25008035]
[1743007549014,3.0,2019.3,2019.1,6.25008035]
[1743007549214,3.0,2019.3,2019.1,1.29752035]
[1743007549527,4.95245,2019.2,2019.0,2.2812435]
[1743007550203,8.15092,2019.3,2019.0,2.2812435]
[1743007550533,3.0,2019.3,2019.0,12.1868235]
[1743007550741,3.0,2019.3,2019.1,1.21868235]
[1743007553333,7.95229,2019.3,2019.1,1.21868235]
[1743007553540,7.95229,2019.3,2019.0,7.2340235]
[1743007553747,7.95229,2019.3,2019.0,2.2812435]
[1743007553913,7.95229,2019.3,2019.0,7.2341835]
[1743007554445,0.1986,2019.5,2019.2,0.55]
[1743007554600,5.14993,2019.7,2019.3,9.72605]
[1743007554799,4.95126,2019.7,2019.4,4.95188]
[1743007555108,3.0,2019.6,2019.4,5.71008]
[1743007556231,4.951,2019.8,2019.4,5.71008]
[1743007556232,3.0,2019.8,2019.6,4.95145]
[1743007556428,5.14946,2019.9,2019.6,4.95145]
[1743007556631,4.9505,2020.0,2019.7,4.95114]
[1743007556632,7.95051,2020.0,2019.7,4.95114]
[1743007557330,9.31203425,2020.1,2019.7,4.95114]
[1743007557331,9.31203425,2020.1,2019.8,4.95089]
[1743007557533,6.37652143,2020.1,2019.8,9.72489]
[1743007557749,3.0,2020.0,2019.8,4.774]
[1743007558233,3.0,2020.1,2019.8,14.67579]
[1743007558401,3.0,2020.1,2019.8,9.72482]
[1743007558815,7.95034,2020.1,2019.8,9.72482]
[1743007559337,3.0,2020.1,2019.8,9.72482]
[1743007559739,7.95039,2020.1,2019.8,4.774]
[1743007562040,7.95039,2020.1,2019.8,10.72301556]
[1743007562239,3.0,2020.1,2019.8,12.36643412]
[1743007563211,7.95026,2020.1,2019.8,12.36643412]
[1743007563940,3.0,2020.1,2019.8,17.31725412]
[1743007564347,3.0,2020.1,2019.9,4.95061]
[1743007564548,3.0,2020.1,2019.8,11.36835856]
[1743007564842,3.0,2020.1,2019.9,1.70796786]
[1743007565212,3.0,2020.1,2019.9,6.65866786]
[1743007565413,7.95027,2020.1,2019.9,1.70796786]
[1743007566054,4.16311425,2020.0,2019.8,4.774]
[1743007566350,4.16311425,2020.0,2019.5,11.62149]
[1743007566351,4.95113,2019.8,2019.5,11.07169]
[1743007566546,12.31284425,2019.8,2019.7,4.772]
[1743007566720,12.31284425,2019.8,2019.5,6.12]
[1743007566721,7.95134,2019.7,2019.5,6.12]
[1743007567045,9.11458425,2019.6,2019.5,10.892]
[1743007567250,9.11458425,2019.6,2019.5,4.772]
[1743007568750,5.15065,2019.4,2019.2,6.12]
[1743007569046,7.53135936,2019.4,2019.3,4.772]
[1743007569284,4.95309,2019.0,2018.6,5.74027]
[1743007569412,9.31480425,2019.0,2018.7,5.958027]
[1743007569613,14.26787425,2019.0,2018.7,5.958027]
[1743007569827,9.31478425,2019.0,2018.7,5.958027]
[1743007570558,4.95321,2018.9,2018.7,5.958027]
[1743007570862,9.31478425,2019.0,2018.7,5.958027]
[1743007571360,9.31478425,2019.0,2018.7,10.911707]
[1743007571669,14.26789425,2019.0,2018.7,5.958027]
[1743007571866,14.26790425,2019.0,2018.7,5.958027]
[1743007572026,4.95323,2018.9,2018.7,5.958027]
[1743007572923,9.31478425,2019.0,2018.7,5.958027]
[1743007573133,14.26791425,2019.0,2018.7,5.958027]
[1743007573366,9.31478425,2019.0,2018.7,10.911687]
[1743007573535,14.26792425,2019.0,2018.7,5.958027]
[1743007573747,4.16311425,2018.8,2018.6,4.95377]
[1743007574062,4.16311425,2018.8,2018.6,5.323]
[1743007574474,4.16311425,2018.8,2018.6,10.27689]
[1743007574678,4.95322,2018.9,2018.6,10.27689]
[1743007575781,4.95322,2018.9,2018.6,24.77689]
[1743007576075,4.95322,2018.9,2018.6,28.440631]
[1743007578364,4.95322,2018.9,2018.6,29.43933584]
[1743007578564,9.11656425,2018.8,2018.6,20.27170484]
[1743007578770,4.95368,2018.7,2018.6,20.27170484]
[1743007579176,9.49398426,2018.8,2018.6,20.27170484]
[1743007580464,14.44759426,2018.8,2018.6,20.27170484]
[1743007580879,9.49398426,2018.8,2018.6,20.27170484]
[1743007581378,14.44758426,2018.8,2018.6,20.27170484]
[1743007581589,4.95368,2018.7,2018.6,20.27170484]
[1743007581789,4.95368,2018.7,2018.6,5.77170484]
[1743007581977,4.95411,2018.6,2018.2,0.7569]
[1743007582293,12.11756425,2018.4,2018.3,4.773]
[1743007583899,12.11756425,2018.4,2018.1,20.62]
[1743007583900,4.95484,2018.3,2018.1,25.393]
[1743007584077,9.11802425,2018.2,2018.1,25.393]
[1743007584273,4.16311425,2018.2,2018.1,10.893]
[1743007585003,9.11802425,2018.2,2018.1,10.893]
[1743007585573,4.95529,2018.1,2017.8,29.3985]
[1743007585809,4.16311425,2018.0,2017.9,4.773]
[1743007588920,9.31713425,2018.0,2017.8,14.5]
[1743007589222,9.31713425,2018.0,2017.8,4.774]
[1743007589514,4.36171425,2018.0,2017.8,5.78792508]
[1743007589719,9.11853425,2018.0,2017.8,5.78792508]
[1743007590598,9.11853425,2018.0,2017.7,19.274]
[1743007590599,4.95564,2017.9,2017.7,19.274]
[1743007590808,4.95623,2017.7,2017.3,5.72871]
[1743007591004,4.95623,2017.7,2017.5,5.74423141]
[1743007591211,4.16311425,2017.6,2017.5,20.24423141]
[1743007591721,4.16311425,2017.6,2017.5,5.74423141]
[1743007592975,4.16311425,2017.6,2017.5,4.774]
[1743007593194,7.16311425,2017.6,2017.5,4.774]
[1743007593814,13.35128867,2017.6,2017.5,4.774]
[1743007594016,7.95672,2017.5,2017.4,4.774]
[1743007594492,7.95672,2017.5,2017.2,14.5]
[1743007594721,4.16311425,2017.3,2017.2,14.5]
[1743007595017,4.16311425,2017.3,2017.2,0.97222428]
[1743007595018,7.16311425,2017.3,2017.2,0.97222428]
[1743007595219,0.1986,2017.7,2017.2,2.11961871]
[1743007595423,3.0,2017.6,2017.5,4.95659]
[1743007595915,3.0,2017.6,2017.4,5.50681]
[1743007596080,3.0,2017.6,2017.3,15.2758]
[1743007596081,7.16311425,2017.5,2017.3,15.2758]
[1743007596407,7.16311425,2017.5,2017.4,4.774]
[1743007599100,4.16311425,2017.5,2017.4,11.08727]
[1743007599311,4.16311425,2017.5,2017.4,14.73464843]
[1743007599500,4.16311425,2017.5,2017.4,11.08727]
[1743007599699,4.16311425,2017.5,2017.4,25.58727]
[1743007602619,4.16311425,2017.5,2017.4,19.274]
[1743007602822,9.11973425,2017.5,2017.4,19.274]
[1743007602986,5.15588,2017.3,2016.9,4.95796]
[1743007603198,4.16311425,2017.1,2017.0,4.775]
[1743007603399,4.16311425,2017.1,2017.0,9.73284]
[1743007604037,4.16311425,2017.1,2017.0,4.775]
[1743007605403,4.16311425,2017.1,2017.0,9.73285]
[1743007605715,4.16311425,2017.1,2017.0,4.775]
[1743007606857,4.16311425,2017.1,2016.9,15.50146499]
[1743007607043,4.16311425,2017.1,2016.9,20.27646499]
[1743007607241,9.12073425,2017.1,2016.9,20.27646499]
[1743007608120,4.16311425,2017.1,2016.9,5.77646499]
[1743007608445,9.12075425,2017.1,2016.9,5.77646499]
[1743007608651,4.95785,2017.0,2016.9,4.775]
[1743007609148,7.95785,2017.0,2016.8,4.2791]
[1743007609307,4.16311425,2016.9,2016.8,4.2791]
[1743007611411,7.16311425,2016.9,2016.8,9.23744]
[1743007611615,7.16311425,2016.9,2016.8,10.20881039]
[1743007611616,3.0,2016.9,2016.8,10.20881039]
[1743007611842,4.16311425,2017.3,2017.0,4.95785]
[1743007612024,4.16311425,2017.3,2017.0,4.95778]
[1743007612232,9.12039425,2017.3,2016.9,10.70142]